bitfinex/quotes_BTCUSD_20260127
["timestamp","ask_amount","ask_price","bid_price","bid_amount"]
[1769531692884,0.0360606,88684.0,88660.0,0.6952333]
[1769531693216,0.06069885,88684.0,88662.0,0.71871488]
[1769531693438,0.0360606,88684.0,88663.0,0.02348158]
[1769531693734,0.0360606,88684.0,88665.0,0.02288153]
[1769531693886,0.0360606,88684.0,88666.0,0.69403308]
[1769531694087,0.02463825,88686.0,88666.0,0.65879177]
[1769531694290,0.05920934,88692.0,88669.0,0.02271054]
[1769531694489,0.05920934,88692.0,88650.0,0.3344299]
[1769531694490,0.05920934,88692.0,88672.0,0.64207844]
[1769531694693,0.05920934,88692.0,88673.0,0.66478898]
[1769531695119,0.0360606,88692.0,88673.0,0.66478898]
[1769531695328,0.02314874,88691.0,88673.0,0.66478898]
[1769531697342,0.02314874,88689.0,88673.0,0.63090217]
[1769531697686,0.02314874,88689.0,88673.0,0.63015157]
[1769531697893,0.02314874,88689.0,88673.0,0.62895053]
[1769531698208,0.02314874,88689.0,88673.0,0.62684845]
[1769531698415,0.02314874,88689.0,88673.0,0.62564712]
[1769531698612,0.02314874,88689.0,88673.0,0.6244457]
[1769531698813,0.02314874,88689.0,88673.0,0.62324416]
[1769531699024,0.02314874,88689.0,88673.0,0.62279356]
[1769531700040,0.02314874,88689.0,88667.0,0.64207844]
[1769531700263,0.02314874,88700.0,88670.0,0.02271054]
[1769531700461,0.11255903,88699.0,88673.0,0.64207844]
[1769531700668,0.13570777,88698.0,88676.0,0.02271054]
[1769531700885,0.02314874,88698.0,88680.0,0.02271054]
[1769531701089,0.02314874,88698.0,88681.0,0.63531044]
[1769531701284,0.02314874,88698.0,88681.0,0.63102495]
[1769531701552,0.00046567,88703.0,88683.0,0.64207844]
[1769531701864,0.02314874,88702.0,88685.0,0.64207844]
[1769531702204,0.02314874,88702.0,88669.0,0.11588]
[1769531702205,0.02314874,88702.0,88671.0,0.02271054]
[1769531702365,0.00845991,88702.0,88672.0,0.64207844]
[1769531702569,0.0360606,88693.0,88651.0,1.03587492]
[1769531702769,0.02314874,88692.0,88654.0,0.02271054]
[1769531702969,0.02314874,88692.0,88662.0,0.64207844]
[1769531703300,0.02314874,88701.0,88662.0,0.05639394]
[1769531703490,0.02314874,88701.0,88673.0,0.64207844]
[1769531703652,0.02314874,88701.0,88676.0,0.02271054]
[1769531703858,0.02314874,88701.0,88677.0,0.66478898]
[1769531704788,0.02314874,88701.0,88677.0,0.66358609]
[1769531705102,0.02314874,88701.0,88677.0,0.66178135]
[1769531705472,0.02314874,88701.0,88637.0,0.22054148]
[1769531705473,0.02314874,88712.0,88681.0,0.02271054]
[1769531705688,9.969e-05,88712.0,88685.0,0.02271054]
[1769531705900,9.969e-05,88712.0,88688.0,0.64207844]
[1769531706120,9.969e-05,88712.0,88679.0,0.11588]
[1769531706121,9.969e-05,88712.0,88692.0,0.64207844]
[1769531706329,0.02324843,88712.0,88681.0,0.64207844]
[1769531706539,0.02324843,88712.0,88679.0,0.11588]
[1769531706540,0.02324843,88712.0,88684.0,0.02271054]
[1769531706750,0.02314874,88703.0,88682.0,0.02271054]
[1769531706964,0.02314874,88703.0,88678.0,0.64207844]
[1769531707190,0.02314874,88703.0,88678.0,0.66478898]
[1769531707392,0.02314874,88703.0,88680.0,0.64207844]
[1769531707603,0.02314874,88703.0,88682.0,0.64207844]
[1769531708066,0.02314874,88703.0,88671.0,0.64207844]
[1769531708292,0.02314874,88703.0,88673.0,0.64207844]
[1769531708515,0.02314874,88703.0,88675.0,0.64207844]
[1769531708724,0.0360606,88704.0,88678.0,0.02271054]
[1769531708942,0.0360606,88704.0,88681.0,0.64207844]
[1769531709166,0.02314874,88708.0,88685.0,0.64207844]
[1769531709371,0.02314874,88708.0,88689.0,0.64207844]
[1769531709577,0.02314874,88708.0,88691.0,0.64207844]
[1769531710916,9.969e-05,88712.0,88694.0,0.02271054]
[1769531711123,9.969e-05,88712.0,88697.0,0.64207844]
[1769531711536,0.02314874,88711.0,88681.0,0.64207844]
[1769531711740,0.02314874,88711.0,88685.0,0.64207844]
[1769531711956,0.33432543,88720.0,88671.0,0.64207844]
[1769531712214,0.02314874,88728.0,88711.0,0.64218512]
[1769531712423,0.02314874,88728.0,88711.0,0.00010668]
[1769531712627,0.0360606,88722.0,88707.0,0.02271054]
[1769531712833,0.0360606,88722.0,88700.0,0.64207844]
[1769531713040,0.0360606,88722.0,88702.0,0.66478898]
[1769531713459,0.0360606,88722.0,88702.0,0.66488867]
[1769531713669,0.0099003,88702.0,88671.0,0.02271054]
[1769531713878,0.01002084,88702.0,88678.0,0.02271054]
[1769531714104,0.00012054,88702.0,88681.0,0.64207844]
[1769531714309,0.00012054,88702.0,88684.0,0.02271054]
[1769531714522,0.00012054,88702.0,88685.0,0.66478898]
[1769531714736,0.00012054,88702.0,88686.0,0.02271054]
[1769531714949,0.00012054,88702.0,88687.0,0.64207844]
[1769531716041,0.00012054,88702.0,88689.0,0.64207844]
[1769531716269,0.1188,88728.0,88704.0,0.64207844]
[1769531716270,0.02023237,88728.0,88704.0,0.64207844]
[1769531716480,0.02023237,88728.0,88702.0,9.969e-05]
[1769531716481,0.02035297,88728.0,88705.0,0.02271054]
[1769531717752,0.02023237,88727.0,88705.0,0.02271054]
[1769531717970,0.02023237,88716.0,88690.0,0.64207844]
[1769531718184,0.02023237,88716.0,88693.0,0.64207844]
[1769531718406,0.0001206,88728.0,88683.0,0.11588]
[1769531718407,0.0001206,88728.0,88697.0,0.64207844]
[1769531718640,0.0001206,88728.0,88700.0,0.02271054]
[1769531718849,0.0001206,88728.0,88683.0,0.11588]
[1769531718850,0.02023237,88725.0,88704.0,0.02271054]
[1769531719059,0.02023237,88725.0,88704.0,0.02210871]
[1769531719281,0.02023237,88725.0,88705.0,0.0222591]
[1769531719499,0.02023237,88725.0,88705.0,0.02090433]
[1769531719704,0.02023237,88725.0,88705.0,0.02000085]
[1769531719816,0.02023237,88725.0,88705.0,0.01939839]
[1769531720043,0.02023237,88725.0,88705.0,0.66147683]
[1769531720504,0.0360606,88726.0,88662.0,0.45114757]
[1769531720505,0.0360606,88712.0,88675.0,0.64207844]
[1769531720667,0.02314874,88711.0,88682.0,0.02271054]
[1769531720974,0.02314874,88711.0,88687.0,0.64207844]
[1769531721179,0.02314874,88711.0,88689.0,0.64207844]
[1769531721382,0.02314874,88711.0,88692.0,0.02271054]
[1769531722754,0.02314874,88711.0,88692.0,0.02105309]
[1769531722954,0.02318985,88724.0,88694.0,0.02422042]
[1769531723085,0.02318985,88722.0,88697.0,0.65013548]
[1769531723276,0.02318985,88720.0,88699.0,0.64998466]
[1769531723476,0.02318985,88720.0,88699.0,0.66269513]
[1769531723669,0.02318985,88710.0,88678.0,0.05638351]
[1769531723896,0.02318985,88710.0,88684.0,0.02422042]
[1769531724101,0.02318985,88710.0,88687.0,0.65013548]
[1769531724306,0.02318985,88710.0,88689.0,0.63463645]
[1769531724503,0.02318985,88710.0,88691.0,0.63463645]
[1769531724819,0.02318985,88710.0,88691.0,0.65903943]
[1769531725263,0.02318985,88710.0,88681.0,0.63463645]
[1769531725444,0.02318985,88710.0,88684.0,0.02440298]
[1769531725646,0.00592504,88710.0,88686.0,0.02440298]
[1769531725847,0.00592504,88710.0,88674.0,0.63463645]
[1769531725848,0.02453572,88703.0,88674.0,0.63463645]
[1769531726025,0.66242301,88700.0,88677.0,0.02440298]
[1769531726230,0.68695873,88700.0,88680.0,0.63463645]
[1769531726461,0.68695873,88700.0,88680.0,0.65903943]
[1769531726972,0.05636447,88709.0,88680.0,0.65903943]
[1769531726973,0.02453572,88706.0,88680.0,0.65903943]
[1769531727176,0.02453572,88706.0,88680.0,0.6595051]
[1769531727633,0.34025047,88710.0,88680.0,0.02486865]
[1769531727754,0.02453572,88708.0,88680.0,0.6595051]
[1769531727966,0.1125689,88709.0,88680.0,0.6595051]
[1769531727967,0.02453572,88706.0,88680.0,0.6595051]
[1769531728205,0.02453572,88706.0,88681.0,0.02440298]
[1769531728411,0.0398784,88706.0,88682.0,0.65903943]
[1769531728584,0.02453572,88705.0,88682.0,0.65903943]
[1769531730071,0.05636437,88709.0,88680.0,0.00046567]
[1769531730072,0.02453572,88690.0,88680.0,0.00046567]
[1769531731279,0.02453572,88690.0,88671.0,0.63477335]
[1769531731490,0.02453572,88690.0,88652.0,0.02440298]
[1769531731491,0.0360606,88682.0,88652.0,0.02440298]
[1769531731715,0.0360606,88682.0,88650.0,0.0003607]
[1769531731716,0.02453572,88667.0,88650.0,0.0003607]
[1769531731935,0.02453572,88667.0,88632.0,0.02440298]
[1769531732144,0.05639352,88663.0,88634.0,0.02440298]
[1769531732362,0.0563952,88661.0,88634.0,0.65903943]
[1769531732572,0.0360606,88653.0,88634.0,0.65303943]
[1769531732784,0.02453572,88652.0,88634.0,0.65303943]
[1769531732996,0.02453572,88652.0,88634.0,0.6191421]
[1769531733208,0.02453572,88652.0,88613.0,0.02440298]
[1769531733209,0.0099003,88634.0,88613.0,0.02440298]
[1769531733445,0.02453572,88633.0,88610.0,0.63463645]
[1769531733662,0.05641157,88635.0,88606.0,0.0003607]
[1769531733897,0.02453572,88632.0,88606.0,0.0003607]
[1769531734316,0.02453572,88632.0,88607.0,0.63463645]
[1769531734735,0.03059535,88632.0,88607.0,0.63463645]
[1769531734945,0.02453572,88632.0,88607.0,0.63463645]
[1769531735232,0.02453572,88632.0,88607.0,0.65903943]
[1769531735682,0.0360606,88637.0,88609.0,0.63463645]
[1769531735881,0.0360606,88637.0,88611.0,0.63463645]
[1769531736090,0.0360606,88637.0,88613.0,0.6338811]
[1769531736288,0.0360606,88637.0,88613.0,0.63252086]
[1769531736289,0.06059632,88637.0,88613.0,0.63252086]
[1769531736487,0.06059632,88637.0,88613.0,0.59725021]
[1769531736488,0.02453572,88636.0,88613.0,0.59725021]
[1769531736690,0.02453572,88636.0,88613.0,0.56213031]
[1769531736866,0.0360606,88620.0,88607.0,0.63463645]
[1769531737063,0.02453572,88630.0,88607.0,0.63463645]
[1769531737268,0.0360606,88622.0,88607.0,0.63463645]
[1769531737681,0.02453572,88630.0,88607.0,0.63463645]
[1769531737877,0.02453572,88630.0,88622.0,9.969e-05]
[1769531738236,0.02453572,88630.0,88615.0,0.60082632]
[1769531738438,0.02453572,88630.0,88615.0,0.5669165]
[1769531738561,0.06059632,88622.0,88606.0,0.00050037]
[1769531738760,0.02453572,88621.0,88606.0,0.00050037]
[1769531739006,0.02453572,88621.0,88570.0,0.33432543]
[1769531739007,0.25331301,88620.0,88570.0,0.33432543]
[1769531739223,0.25331301,88620.0,88580.0,0.33432543]
[1769531739224,0.00013938,88620.0,88580.0,0.33432543]
[1769531739445,0.06106059,88619.0,88591.0,0.63463645]
[1769531739652,0.02499999,88618.0,88591.0,0.63463645]
[1769531740080,0.0360606,88618.0,88591.0,0.63463645]
[1769531740280,0.0360606,88617.0,88581.0,0.63463645]
[1769531740481,0.0360606,88617.0,88592.0,0.63463645]
[1769531740886,0.0360606,88616.0,88593.0,0.05643751]
[1769531741106,0.0360606,88616.0,88592.0,0.63463645]
[1769531741306,0.0360606,88616.0,88592.0,0.69107454]
[1769531741510,0.0360606,88616.0,88592.0,0.75055645]
[1769531741912,0.0360606,88616.0,88592.0,0.74555645]
[1769531742336,0.05641467,88630.0,88592.0,0.74555645]
[1769531742337,0.05824358,88635.0,88592.0,0.14032298]
[1769531742509,0.0360606,88616.0,88595.0,0.63463645]
[1769531742793,0.0360606,88616.0,88597.0,0.63463645]
[1769531742975,0.0360606,88616.0,88599.0,0.63463645]
[1769531743142,0.0360606,88616.0,88599.0,0.65903943]
[1769531743698,0.0360606,88616.0,88599.0,0.63463645]
[1769531743915,0.06059632,88616.0,88599.0,0.63463645]
[1769531744641,0.02453572,88633.0,88601.0,0.63463645]
[1769531744844,0.0360606,88619.0,88604.0,0.02440298]
[1769531745046,0.0360606,88619.0,88605.0,0.63463645]
[1769531745772,0.02453572,88627.0,88605.0,0.63463645]
[1769531745986,0.0360606,88635.0,88608.0,0.02440298]
[1769531746190,0.02453572,88634.0,88611.0,0.63463645]
[1769531746365,0.02453572,88634.0,88611.0,0.63387985]
[1769531746610,0.02453572,88634.0,88611.0,0.65692032]
[1769531746812,0.02453572,88634.0,88611.0,0.655557]
[1769531747006,0.02453572,88634.0,88611.0,0.65434448]
[1769531747206,0.02453572,88634.0,88611.0,0.65313132]
[1769531747462,0.0360606,88633.0,88611.0,0.65297963]
[1769531747686,0.0360606,88633.0,88614.0,0.02440298]
[1769531747914,0.0360606,88633.0,88615.0,0.63463645]
[1769531748142,0.0360606,88633.0,88618.0,0.02440298]
[1769531748369,0.0360606,88633.0,88619.0,0.63463645]
[1769531748803,0.02453572,88650.0,88619.0,0.63463645]
[1769531749021,0.0360606,88633.0,88619.0,0.63463645]
[1769531749256,0.06059632,88646.0,88622.0,0.02440298]
[1769531749458,0.02453572,88645.0,88623.0,0.63463645]
[1769531749875,0.02453572,88645.0,88623.0,0.63448483]
[1769531751335,0.22559525,88655.0,88614.0,0.11596]
[1769531751336,0.02453572,88660.0,88632.0,0.02440298]
[1769531751539,0.05799016,88678.0,88631.0,0.02440298]
[1769531751747,0.02453572,88664.0,88635.0,0.02440298]
[1769531751950,0.05639422,88662.0,88637.0,0.02440298]
[1769531752154,0.02453572,88664.0,88637.0,0.02440298]
[1769531752576,0.26162991,88665.0,88637.0,0.65903943]
[1769531752786,0.02453572,88660.0,88637.0,0.62514181]
[1769531753216,0.02453572,88660.0,88637.0,0.64954479]
[1769531753431,0.02453572,88659.0,88637.0,0.64954479]
[1769531753637,0.04060937,88664.0,88637.0,0.64954479]
[1769531753844,0.02453572,88659.0,88637.0,0.64954479]
[1769531754462,0.0563959,88659.0,88637.0,0.64954479]
[1769531754678,0.05639991,88653.0,88630.0,0.11596]
[1769531754891,0.0245119,88656.0,88631.0,0.64697009]
[1769531755326,0.0245119,88654.0,88631.0,0.64697009]
[1769531755534,0.0245119,88654.0,88632.0,0.02498412]
[1769531755743,0.0245119,88654.0,88635.0,0.64697009]
[1769531755952,0.02465154,88654.0,88635.0,0.64697009]
[1769531757237,0.02465154,88654.0,88637.0,0.64697009]
[1769531758345,0.02465154,88654.0,88638.0,0.02498412]
[1769531758346,0.00013964,88654.0,88638.0,0.02498412]
[1769531758550,0.00013964,88654.0,88640.0,0.02498412]
[1769531758760,0.00013964,88654.0,88641.0,0.64697009]
[1769531760237,0.02465154,88654.0,88641.0,0.64697009]
[1769531760706,0.02465154,88654.0,88635.0,0.02498412]
[1769531760707,0.04060937,88680.0,88650.0,0.64697009]
[1769531760936,0.0245119,88679.0,88654.0,0.64697009]
[1769531761168,0.0245119,88679.0,88650.0,0.00013964]
[1769531761169,0.04060937,88666.0,88650.0,0.00013964]
[1769531761384,0.04060937,88666.0,88651.0,0.64697009]
[1769531761595,0.04060937,88666.0,88653.0,0.64697009]
[1769531762936,0.0245119,88673.0,88653.0,0.61287476]
[1769531766314,0.0245119,88673.0,88653.0,0.61205752]
[1769531766562,0.0245119,88673.0,88653.0,0.61021845]
[1769531766783,0.11233578,88672.0,88653.0,0.60837901]
[1769531766988,0.04060937,88675.0,88653.0,0.6065392]
[1769531766989,0.0245119,88671.0,88653.0,0.6065392]
[1769531767122,0.0245119,88671.0,88653.0,0.60510798]
[1769531767322,0.0245119,88671.0,88653.0,0.60367653]
[1769531767531,0.0245119,88671.0,88653.0,0.60204033]
[1769531767736,0.0245119,88671.0,88653.0,0.60043829]
[1769531767936,0.0245119,88671.0,88653.0,0.59839221]
[1769531768157,0.0245119,88671.0,88653.0,0.59655035]
[1769531768358,0.0245119,88671.0,88653.0,0.59470812]
[1769531768575,0.0245119,88671.0,88653.0,0.59286553]
[1769531768914,0.0245119,88671.0,88653.0,0.59040816]
[1769531769119,0.0245119,88671.0,88650.0,0.00013964]
[1769531769120,0.06512127,88661.0,88650.0,0.00013964]
[1769531769261,0.0245119,88660.0,88650.0,0.00013964]
[1769531769456,0.02465154,88650.0,88634.0,0.02498412]
[1769531769668,0.04060937,88647.0,88633.0,0.64697009]
[1769531771848,0.04060937,88647.0,88630.0,0.64697009]
[1769531775518,0.02465147,88650.0,88631.0,0.02498412]
[1769531775759,0.02465147,88650.0,88632.0,0.64697009]
[1769531775965,0.02465147,88650.0,88632.0,0.64512657]
[1769531776173,0.02465147,88650.0,88632.0,0.66847185]
[1769531776394,0.02465147,88650.0,88632.0,0.66662797]
[1769531776615,0.04060937,88647.0,88632.0,0.6647839]
[1769531776856,0.02465147,88650.0,88632.0,0.66252979]
[1769531777071,0.04060937,88647.0,88632.0,0.66068531]
[1769531777284,0.04060937,88647.0,88612.0,0.05642514]
[1769531777285,0.0245119,88646.0,88609.0,0.64697009]
[1769531777498,0.04060937,88647.0,88613.0,0.64697009]
[1769531777691,0.04060937,88646.0,88611.0,0.02498412]
[1769531777894,0.04060937,88646.0,88618.0,0.02498412]
[1769531778149,0.03964913,88646.0,88619.0,0.02498412]
[1769531778350,0.0245119,88659.0,88623.0,0.02498412]
[1769531778512,0.0245119,88657.0,88626.0,0.64697009]
[1769531778698,0.0245119,88657.0,88620.0,0.33465221]
[1769531778699,0.0245119,88655.0,88628.0,0.64697009]
[1769531778904,0.13720278,88654.0,88632.0,0.64697009]
[1769531779098,0.11246077,88653.0,88633.0,0.02459945]
[1769531779326,0.02419185,88654.0,88633.0,0.67146433]
[1769531779744,0.02419185,88654.0,88633.0,0.67087169]
[1769531779971,0.02419185,88654.0,88633.0,0.67002733]
[1769531780175,0.02419185,88654.0,88633.0,0.66918244]
[1769531780502,0.02419185,88654.0,88634.0,0.02487839]
[1769531780735,0.02419185,88654.0,88636.0,0.02498412]
[1769531780906,0.02419185,88654.0,88636.0,0.67150544]
[1769531781111,0.02419185,88654.0,88636.0,0.67065878]
[1769531781307,0.02419185,88654.0,88636.0,0.66970575]
[1769531781507,0.02419185,88654.0,88636.0,0.66885812]
[1769531781712,0.02419185,88654.0,88636.0,0.66801003]
[1769531781875,0.0243178,88654.0,88636.0,0.66737367]
[1769531782070,0.0243178,88654.0,88636.0,0.66641864]
[1769531782289,0.0243178,88654.0,88636.0,0.66546303]
[1769531782603,0.0243178,88654.0,88636.0,0.66418797]
[1769531782805,0.0243178,88654.0,88636.0,0.663231]
[1769531783003,0.0243178,88654.0,88636.0,0.66237987]
[1769531783210,0.03912012,88654.0,88620.0,0.33465221]
[1769531783377,0.00012595,88654.0,88635.0,0.65760781]
[1769531783570,0.00012595,88654.0,88630.0,0.45057221]
[1769531783571,0.00012595,88654.0,88638.0,0.02486292]
[1769531783779,0.00012595,88654.0,88641.0,0.65760781]
[1769531784031,0.02485458,88663.0,88641.0,0.65760781]
[1769531784032,0.02466033,88663.0,88644.0,0.02486292]
[1769531784269,0.04060937,88657.0,88610.0,0.33465221]
[1769531784470,0.00999999,88644.0,88628.0,0.66511995]
[1769531784742,0.04060937,88643.0,88628.0,0.66511995]
[1769531784919,0.04060937,88643.0,88628.0,0.68827272]
[1769531785494,0.04060937,88643.0,88630.0,0.66511995]
[1769531787587,0.03964872,88643.0,88630.0,0.66511995]
[1769531788021,0.02260072,88642.0,88623.0,0.11592]
[1769531788246,0.02260072,88642.0,88590.0,0.33465221]
[1769531788247,0.02292089,88629.0,88605.0,0.80419272]
[1769531788586,0.02292089,88629.0,88609.0,0.66511995]
[1769531788757,0.02292089,88629.0,88612.0,0.69219995]
[1769531789322,0.04590568,88643.0,88613.0,0.02315277]
[1769531789323,0.03964872,88643.0,88613.0,0.02315277]
[1769531789520,0.00012589,88629.0,88614.0,0.68827272]
[1769531789720,0.00012589,88629.0,88615.0,0.02315277]
[1769531789927,0.00012589,88629.0,88615.0,0.68827272]
[1769531791013,0.00012589,88629.0,88617.0,0.66511995]
[1769531792009,0.00012589,88629.0,88612.0,0.02708]
[1769531792010,0.00999999,88617.0,88612.0,0.05023277]
[1769531792269,0.00999999,88617.0,88607.0,0.02315277]
[1769531792398,0.00999999,88617.0,88604.0,0.66511995]
[1769531792787,0.00999999,88617.0,88600.0,0.11592]
[1769531792788,0.06353026,88625.0,88606.0,0.66511995]
[1769531793118,0.06353026,88625.0,88606.0,0.68827272]
[1769531794112,0.06353026,88625.0,88607.0,0.02315277]
[1769531794316,0.06353026,88625.0,88607.0,0.68827272]
[1769531795735,0.00012589,88629.0,88607.0,0.66511995]
[1769531795947,0.04060937,88627.0,88610.0,0.02315277]
[1769531796169,0.04060937,88627.0,88613.0,0.66511995]
[1769531796371,0.04060937,88625.0,88614.0,0.66511995]
[1769531796571,0.04060937,88625.0,88615.0,0.02315277]
[1769531796769,0.04060937,88625.0,88615.0,0.68827272]
[1769531796977,0.00012589,88629.0,88615.0,0.66511995]
[1769531797181,0.13537832,88649.0,88619.0,0.66511995]
[1769531797182,0.04060937,88641.0,88619.0,0.66511995]
[1769531797384,0.16894,88654.0,88619.0,0.66511995]
[1769531797385,0.1126688,88640.0,88622.0,0.02315277]
[1769531797564,0.04060937,88653.0,88625.0,0.66511995]
[1769531797778,0.11265684,88652.0,88628.0,0.02315277]
[1769531797985,0.11265684,88651.0,88632.0,0.02315277]
[1769531798184,0.04060937,88660.0,88635.0,0.66511995]
[1769531798396,0.11266743,88659.0,88639.0,0.66511995]
[1769531798596,0.04060937,88660.0,88642.0,0.02315277]
[1769531798793,0.04060937,88660.0,88644.0,0.02315277]
[1769531799025,0.04060937,88660.0,88645.0,0.02315277]
[1769531799567,0.04060937,88660.0,88646.0,0.66511995]
[1769531799769,0.04060937,88660.0,88647.0,0.66511995]
[1769531799971,0.04060937,88660.0,88648.0,0.02315277]
[1769531800814,0.04074899,88660.0,88648.0,0.02315277]
[1769531802413,0.04074899,88660.0,88641.0,0.66511995]
[1769531802613,0.04074899,88660.0,88627.0,0.2256646]
[1769531802614,0.04074899,88660.0,88643.0,0.68827272]
[1769531803619,0.16602004,88660.0,88643.0,0.68827272]
[1769531804586,0.10235016,88659.0,88643.0,0.02315277]
[1769531804781,0.12527105,88659.0,88643.0,0.02315277]
[1769531805427,0.10235016,88659.0,88636.0,0.66511995]
[1769531805627,0.12527105,88657.0,88637.0,0.02315277]
[1769531805846,0.12527105,88657.0,88638.0,0.68827272]
[1769531806310,0.02292089,88656.0,88627.0,0.7215359]
[1769531806552,0.12527105,88654.0,88629.0,0.66511995]
[1769531806782,0.12527105,88654.0,88632.0,0.02315277]
[1769531807018,0.12527105,88654.0,88635.0,0.66511995]
[1769531807241,0.12527105,88654.0,88637.0,0.68827272]
[1769531807465,0.04074899,88660.0,88637.0,0.66511995]
[1769531807665,0.02292089,88659.0,88639.0,0.66511995]
[1769531807867,0.10235016,88658.0,88640.0,0.02315277]
[1769531808093,0.02292089,88657.0,88640.0,0.02315277]
[1769531809764,0.00999999,88640.0,88621.0,0.02315277]
[1769531809962,0.02292089,88636.0,88614.0,0.66511995]
[1769531810171,0.27864038,88630.0,88595.0,0.02708]
[1769531810487,0.04060937,88632.0,88598.0,0.02315277]
[1769531810488,0.02292089,88625.0,88598.0,0.02315277]
[1769531810662,0.02292089,88623.0,88600.0,0.66511995]
[1769531810866,0.02292089,88623.0,88603.0,0.02315277]
[1769531811066,0.02292089,88623.0,88604.0,0.66511995]
[1769531811271,0.02292089,88623.0,88605.0,0.02315277]
[1769531811473,0.02292089,88623.0,88606.0,0.68827272]
[1769531812483,0.04060937,88629.0,88607.0,0.02315277]
[1769531812683,0.04060937,88629.0,88608.0,0.68827272]
[1769531812890,0.02292089,88628.0,88609.0,0.02315277]
[1769531813094,0.02292089,88628.0,88610.0,0.66511995]
[1769531813289,0.02292089,88636.0,88612.0,0.66511995]
[1769531813517,0.02292089,88636.0,88604.0,0.05655615]
[1769531813518,0.04060937,88632.0,88615.0,0.02315277]
[1769531813752,0.04060937,88632.0,88604.0,0.00012589]
[1769531813753,0.02292089,88636.0,88616.0,0.66511995]
[1769531813981,0.27864038,88640.0,88619.0,0.02315277]
[1769531814186,0.27864038,88640.0,88620.0,0.68827272]
[1769531814387,0.31220726,88631.0,88605.0,0.68201466]
[1769531814518,0.00999999,88620.0,88604.0,0.00012589]
[1769531814733,0.31220726,88622.0,88605.0,0.68201466]
[1769531814934,0.02361656,88626.0,88605.0,0.70543679]
[1769531815202,0.02361656,88626.0,88605.0,0.68201466]
[1769531815403,0.02361656,88626.0,88607.0,0.68201466]
[1769531817911,0.04060937,88632.0,88607.0,0.68201466]
[1769531818074,0.04060937,88632.0,88609.0,0.68201466]
[1769531818278,0.04060937,88632.0,88612.0,0.02342213]
[1769531818518,0.02361656,88637.0,88615.0,0.68201466]
[1769531818688,0.04060937,88631.0,88617.0,0.68201466]
[1769531818892,0.04060937,88631.0,88617.0,0.64810755]
[1769531819092,0.04060937,88631.0,88617.0,0.61420044]
[1769531819294,0.04060937,88631.0,88617.0,0.58029333]
[1769531820730,0.0624004,88643.0,88604.0,0.00012589]
[1769531820731,0.41291137,88642.0,88618.0,0.02342213]
[1769531820929,0.02361656,88646.0,88622.0,0.02342213]
[1769531821130,0.02361656,88656.0,88625.0,0.02342213]
[1769531821333,0.45038983,88656.0,88628.0,0.68201466]
[1769531821509,0.45038983,88654.0,88631.0,0.02342213]
[1769531821719,0.02361656,88653.0,88632.0,0.70543679]
[1769531821941,0.45038983,88654.0,88622.0,0.11596]
[1769531821942,0.08563941,88654.0,88634.0,0.68201466]
[1769531822150,0.08563941,88654.0,88622.0,0.11596]
[1769531822151,0.08563941,88654.0,88638.0,0.68201466]
[1769531822358,0.08563941,88654.0,88640.0,0.68201466]
[1769531822532,0.04060937,88659.0,88643.0,0.02342213]
[1769531822734,0.04073015,88659.0,88644.0,0.67153164]
[1769531823035,0.04060937,88658.0,88644.0,0.63762649]
[1769531823241,0.00012078,88659.0,88644.0,0.60372134]
[1769531823437,0.00012078,88659.0,88646.0,0.68201466]
[1769531824255,0.00012078,88659.0,88646.0,0.70543679]
[1769531824459,0.00012078,88659.0,88646.0,0.68201466]
[1769531824703,0.0900349,88686.0,88603.0,0.04060937]
[1769531824704,0.0900349,88693.0,88644.0,0.05640476]
[1769531824850,0.06422593,88682.0,88652.0,0.68201466]
[1769531825054,0.06422593,88682.0,88657.0,0.05639655]
[1769531825254,0.06422593,88682.0,88661.0,0.02342213]
[1769531825462,0.06422593,88682.0,88663.0,0.70543679]
[1769531825663,0.00056486,88688.0,88664.0,0.02342213]
[1769531825904,0.00056486,88688.0,88667.0,0.05639048]
[1769531826171,0.00056486,88688.0,88663.0,0.11596]
[1769531826172,0.00056486,88688.0,88670.0,0.68201466]
[1769531826448,0.00056486,88688.0,88673.0,0.70543679]
[1769531826827,0.00056486,88688.0,88650.0,0.22560522]
[1769531826828,0.00999999,88673.0,88640.0,0.33465221]
[1769531827041,0.00999999,88673.0,88657.0,0.68201466]
[1769531827249,0.00999999,88673.0,88641.0,0.143]
[1769531827250,0.02361656,88684.0,88660.0,0.02342213]
[1769531827478,0.02361656,88684.0,88661.0,0.79793466]
[1769531827695,0.00056486,88688.0,88663.0,0.68201466]
[1769531827895,0.00056486,88688.0,88667.0,0.68201466]
[1769531828010,0.00056486,88688.0,88670.0,0.02342213]
[1769531828210,0.00056486,88688.0,88670.0,0.70543679]
[1769531828406,0.00056486,88688.0,88670.0,0.67155163]
[1769531829046,0.02418142,88688.0,88670.0,0.67155163]
[1769531829735,0.56175521,88688.0,88670.0,0.67155163]
[1769531829997,0.02361656,88687.0,88670.0,0.67155163]
[1769531830758,0.11596,88711.0,88661.0,0.11592]
[1769531830985,0.11596,88711.0,88672.0,0.68201466]
[1769531830986,0.02361656,88701.0,88672.0,0.68201466]
[1769531831186,0.02361656,88701.0,88676.0,0.68201466]
[1769531831396,0.02361656,88701.0,88679.0,0.02334326]
[1769531831596,0.02361656,88701.0,88683.0,0.02334326]
[1769531831774,0.02361656,88701.0,88684.0,0.70535792]
[1769531831979,0.58480691,88701.0,88684.0,0.70535792]
[1769531832388,0.02361656,88700.0,88684.0,0.70535792]
[1769531832593,0.00046524,88710.0,88684.0,0.68201466]
[1769531832797,0.00046524,88710.0,88686.0,0.68201466]
[1769531832997,0.02361656,88706.0,88686.0,0.68201466]
[1769531833196,0.02361656,88705.0,88686.0,0.68201466]
[1769531833436,0.02361656,88703.0,88686.0,0.68201466]
[1769531834522,0.00046524,88710.0,88682.0,0.11592]
[1769531834523,0.02361656,88702.0,88682.0,0.11592]
[1769531834728,0.02361656,88698.0,88681.0,0.11592]
[1769531834992,0.02361656,88694.0,88681.0,0.11592]
[1769531835147,0.02361656,88692.0,88671.0,0.70535792]
[1769531835325,0.04060937,88700.0,88666.0,0.11588]
[1769531835326,0.02361656,88688.0,88666.0,0.11588]
[1769531835529,0.56119035,88686.0,88666.0,0.11588]
[1769531835752,0.02361656,88685.0,88666.0,0.79789466]
[1769531835953,0.02361656,88683.0,88666.0,0.11588]
[1769531836174,0.02361656,88681.0,88666.0,0.11588]
[1769531836983,0.02361656,88681.0,88630.0,0.33454825]
[1769531837262,0.04060937,88700.0,88632.0,0.68201466]
[1769531837263,0.56126368,88676.0,88632.0,0.68201466]
[1769531837414,0.11588,88689.0,88636.0,1.06372191]
[1769531837415,0.08360836,88681.0,88636.0,1.06372191]
[1769531837615,0.02361656,88690.0,88654.0,0.68201466]
[1769531837798,0.02361656,88686.0,88658.0,0.01884633]
[1769531838001,0.02361656,88686.0,88661.0,0.70086099]
[1769531838250,0.02361656,88686.0,88663.0,0.68201466]
[1769531838460,0.02361656,88686.0,88666.0,0.01884633]
[1769531838641,0.02361656,88686.0,88667.0,0.68201466]
[1769531839101,0.02361656,88686.0,88667.0,0.68213542]
[1769531839254,0.02361656,88686.0,88669.0,0.68201466]
[1769531839859,0.02361656,88686.0,88667.0,0.00012076]
[1769531840067,0.02361656,88685.0,88667.0,0.00012076]